[Event "VII Totalizator Sportowy 2022"]
[Site "Bydgoszcz"]
[Date "2022.07.03"]
[Round "9.9"]
[White "Sieciechowicz, Marcin"]
[Black "Ulasevich, Sergei"]
[Result "1/2-1/2"]
[ECO "E32"]
[WhiteElo "2388"]
[BlackElo "2217"]
[Annotator "TA"]
[PlyCount "132"]
[EventDate "2022.06.25"]
[EventType "swiss"]
[EventCountry "POL"]
[SourceTitle "playchess.com"]
[Source "ChessBase"]
[SourceQuality "1"]
[TimeControl "40/5400+30:1800+30"]

{[%evp 10,132,6,0,2,0,1,0,0,-14,0,0,0,0,0,0,0,7,7,5,5,12,23,0,0,0,0,0,6,10,6,9,22,0,4,8,4,3,7,0,1,0,0,0,1,0,0,5,3,0,0,0,9,7,14,12,16,14,27,24,27,27,20,18,15,17,40,40,33,40,40,33,33,33,33,33,31,10,10,10,34,49,34,67,56,0,0,0,0,0,0,0,0,0,0,0,0,0,0,0,0,0,0,0,0,0,0,0,0,0,0,0,0,-8,0,0,0,0,0,0,0,0,0,0,0]} 1. d4 {[%emt 0:00:05]} Nf6 {[%emt 0:00:05]} 2. c4 {[%emt 0:00:04]} e6 {[%emt 0:00:23]} 3. Nc3 {[%emt 0:00:43]} Bb4 {[%emt 0:00:07]} 4. Qc2 {[%emt 0:00:05]} O-O {[%emt 0:00:13]} 5. Nf3 {[%emt 0:00:06]} d5 {[%emt 0:00:32]} 6. Bg5 {[%emt 0:00:44]} c5 {[%emt 0:00:22] E32: Nimzo-Indian: Classical (4 Qc2): 4...0-0.} 7. e3 {[%emt 0:00:38] 7.dxc5 deserves study.} h6 {[%emt 0:01:32]} 8. Bxf6 {[%emt 0:16:35]} Qxf6 {[%emt 0:00:12]} 9. a3 {[%emt 0:03:20]} Ba5 {[%emt 0:06:35]} 10. dxc5 {[%emt 0:04:16] aiming for b4.} Bxc3+ {[%emt 0:01:45]} 11. Qxc3 {[%emt 0:00:32]} Qxc3+ {[%emt 0:00:18]} 12. bxc3 {[%emt 0:00:02]} dxc4 {[%emt 0:00:17]} 13. Bxc4 {[%emt 0:02:29] [#]} Bd7 $146 {[%emt 0:05:11]} ({Predecessor:} 13... Nd7 14. c6 bxc6 15. O-O Nb6 16. Be2 Rd8 17. Ne5 Bb7 18. Bf3 Rac8 19. Rfd1 Rxd1+ 20. Rxd1 {1-0 (95) Ogloblin,N (2346)-Kazakovskiy,V (2473) Chess.com INT 2020}) 14. Rb1 {[%emt 0:06:02]} Rc8 {[%emt 0:04:49][%cal Bf8c8,Bc8c5,Bc5c3][%mdl 32]} 15. Rxb7 {[%emt 0:03:20]} Rxc5 {[%emt 0:01:16] [#] ...Bc8 is the strong threat.} 16. Bd3 {[%emt 0:08:29]} Bc6 {[%emt 0:17:09]} 17. Rb3 {[%emt 0:04:15]} Ba4 {[%emt 0:01:44]} 18. Rb4 {[%emt 0:14:29]} Rxc3 {[%emt 0:00:58] Hoping for ...Rc1+.} 19. Rxa4 {[%emt 0:03:51]} Rxd3 {[%emt 0:00:46]} (19... Rc1+ $2 20. Ke2 Rxh1 21. Be4 $16) 20. Ke2 {[%emt 0:01:06]} Rc3 {[%emt 0:09:42]} 21. Ne5 {[%emt 0:04:47]} (21. Kd2 $5 {[%cal Rd2c3]} Rb3 22. Rc1 $11) 21... Nc6 {[%emt 0:04:56]} 22. Rc4 {[%emt 0:04:44]} Rxc4 {[%emt 0:00:06]} 23. Nxc4 $11 {[%emt 0:00:02][%mdl 4096] Endgame KRN-KRN} Rb8 {[%emt 0:03:52]} 24. Rd1 {[%emt 0:01:24]} Rb7 {[%emt 0:00:16] Inhibits Rd7.} 25. Rc1 {[%emt 0:05:28]} Kf8 {[%emt 0:03:09]} 26. Nd6 {[%emt 0:02:11]} Rc7 {[%emt 0:08:05]} 27. Rc4 {[%emt 0:05:25]} Ke7 {[%emt 0:00:50]} 28. Nb5 {[%emt 0:00:46]} Rc8 {[%emt 0:00:05]} 29. Kd2 {[%emt 0:01:53]} Kd7 {[%emt 0:03:09]} 30. Nd4 {[%emt 0:03:30]} Nxd4 {[%emt 0:04:40]} 31. Rxd4+ {[%emt 0:00:03] KR-KR} Ke7 {[%emt 0:00:35]} 32. Ra4 {[%emt 0:00:11]} Rc7 {[%emt 0:00:07]} 33. h4 {[%emt 0:00:51]} h5 {[%emt 0:02:28]} 34. g3 {[%emt 0:00:22]} Kd6 {[%emt 0:00:31]} 35. Ra6+ {[%emt 0:00:20]} Kd5 {[%emt 0:05:54]} 36. Kd3 {[%emt 0:01:03]} g6 {[%emt 0:02:39]} 37. Ra5+ {[%emt 0:00:05]} Kd6 {[%emt 0:00:29]} 38. Kd4 {[%emt 0:00:19]} Rb7 {[%emt 0:01:19]} 39. Ra6+ {[%emt 0:00:33]} Ke7 {[%emt 0:01:14]} 40. Ke4 {[%emt 0:00:00]} Kf6 {[%emt 0:00:00]} 41. Kf4 {[%emt 0:01:47]} Rc7 {[%emt 0:04:22]} 42. e4 {[%emt 0:03:15]} Rb7 {[%emt 0:02:33]} 43. f3 {[%emt 0:00:17]} Rc7 {[%emt 0:05:33]} 44. Ra5 {[%emt 0:00:32]} Rb7 {[%emt 0:01:10]} 45. g4 {[%emt 0:01:07]} hxg4 {[%emt 0:00:12]} 46. fxg4 {[%emt 0:00:29]} Rc7 {[%emt 0:08:31]} 47. h5 {[%emt 0:01:46]} ({Better is} 47. g5+ $14 Kg7 48. Ke5) 47... Kg7 {[%emt 0:00:35] The position is equal.} 48. Ke5 {[%emt 0:09:34][%cal Oh5h6]} Rc1 {[%emt 0:07:30]} 49. hxg6 {[%emt 0:06:01]} Kxg6 {[%emt 0:00:04]} 50. Rxa7 {[%emt 0:01:08]} Rg1 {[%emt 0:00:07]} 51. Ra8 {[%emt 0:03:29]} Kg7 {[%emt 0:00:04]} 52. Kf4 {[%emt 0:04:16]} Rf1+ {[%emt 0:02:02]} 53. Ke3 {[%emt 0:00:54]} Rg1 {[%emt 0:00:47]} 54. Kf3 {[%emt 0:00:08]} Rf1+ {[%emt 0:00:08]} 55. Kg3 {[%emt 0:00:16]} Rg1+ {[%emt 0:00:08]} 56. Kh3 {[%emt 0:00:16]} Kf6 {[%emt 0:02:40]} 57. Ra4 {[%emt 0:01:29]} Ke5 {[%emt 0:01:18]} 58. Rb4 {[%emt 0:00:43]} Kf4 {[%emt 0:01:05]} 59. a4 {[%emt 0:00:13]} Rg3+ {[%emt 0:03:04]} 60. Kh2 {[%emt 0:00:03][%cal Oe4e5] [#] White wants to mate with e5+!} Ra3 {[%emt 0:00:17]} (60... Kxg4 {gets mated.} 61. e5+ Kf3 62. Rb3+ Kg4 63. Rxg3+ Kf5 64. a5 Kf4 65. a6) 61. Rb7 {[%emt 0:00:23]} f6 {[%emt 0:03:13]} 62. Rb6 {[%emt 0:00:08]} Ke5 {[%emt 0:00:46]} 63. Rb4 {[%emt 0:00:06]} Kf4 {[%emt 0:00:45]} 64. Rb6 {[%emt 0:00:08]} Rxa4 {[%emt 0:02:05]} 65. Rxe6 {[%emt 0:00:11]} Kxg4 {[%emt 0:00:11]} 66. Rxf6 {[%emt 0:00:08]} Rxe4 {[%emt 0:00:04] Weighted Error Value: White=0.03 (flawless) /Black=0.02 (flawless)} 1/2-1/2

[Event "VII Totalizator Sportowy 2022"]
[Site "Bydgoszcz"]
[Date "2022.07.03"]
[Round "9.10"]
[White "Golubka, Petro"]
[Black "Kacprzak, Kacper"]
[Result "1-0"]
[ECO "A40"]
[WhiteElo "2380"]
[BlackElo "2238"]
[Annotator "TA"]
[PlyCount "47"]
[EventDate "2022.06.25"]
[EventType "swiss"]
[EventCountry "POL"]
[SourceTitle "playchess.com"]
[Source "ChessBase"]
[SourceQuality "1"]
[TimeControl "40/5400+30:1800+30"]

{[%evp 10,47,10,0,0,0,2,-6,-8,-18,-29,-18,47,28,87,96,99,74,245,246,251,236,213,224,547,532,637,652,626,534,627,630,646,627,1143,329,322,341,356,310]} 1. d4 {[%emt 0:00:39]} Nf6 {[%emt 0:00:06]} 2. c4 {[%emt 0:00:11]} e6 {[%emt 0:00:04]} 3. g3 {[%emt 0:00:45]} c5 {[%emt 0:01:05]} 4. Nf3 {[%emt 0:00:14][%cal Bg1f3,Bf3d4,Bd4b5,Bb5c3,Bc3e4][%mdl 32]} cxd4 {[%emt 0:00:11]} 5. Nxd4 {[%emt 0:00:04]} Qc7 {[%emt 0:00:06]} 6. b3 {[%emt 0:00:26]} Bb4+ {[%emt 0:00:45] A32: Symmetrical English: 2 Nf3 Nf6 3 d4 cxd4 4 Nxd4 e6.} 7. Bd2 {[%emt 0:00:55]} Bc5 {[%emt 0:00:06]} 8. e3 {[%emt 0:00:59]} e5 {[%emt 0:13:03] The position is equal.} 9. Nb5 {[%emt 0:02:17]} Qc6 {[%emt 0:00:07]} 10. Rg1 {[%emt 0:00:11]} a6 {[%emt 0:08:09]} (10... d5 $11) 11. N5c3 {[%emt 0:00:29]} O-O {[%emt 0:01:10] [#]} (11... h5 $11) 12. g4 $146 {[%emt 0:01:09][%cal Bg3g4,Bg4g5][%mdl 32]} ({Predecessor:} 12. Bg2 Qe6 13. Nd5 Nxd5 14. Bxd5 Qh6 15. b4 Be7 16. Qf3 Nc6 17. a3 d6 18. Nc3 {0-1 (30) Kovalev,A-Plyusnin,V (1868) ICCF email 2010}) 12... Qe6 {[%emt 0:10:21]} 13. Bd3 {[%emt 0:18:22]} b5 $2 {[%emt 0:07:35] [#]} (13... d6 $16) 14. Bf5 $1 $18 {[%emt 0:06:20]} (14. cxb5 d5 $11) 14... Qd6 {[%emt 0:08:23]} 15. g5 {[%emt 0:01:10]} ({Less strong is} 15. cxb5 axb5 16. g5 (16. Nxb5 Qc6 $11) 16... Ne8 $16) 15... Ne8 {[%emt 0:00:03]} 16. Ne4 {[%emt 0:06:20]} ({Much less strong is} 16. cxb5 $6 axb5 17. Nxb5 Qb6 $16) 16... Qe7 {[%emt 0:00:16]} (16... Qb6 17. Nbc3 Bb7) 17. Nbc3 {[%emt 0:05:45][%cal Of5h7] White wants to mate with Bxh7+!} Bb7 {[%emt 0:03:01] [#]} 18. Bxh7+ {[%emt 0:07:00][%mdl 512]} Kxh7 {[%emt 0:00:17] [#]} 19. Qh5+ $1 {[%emt 0:00:06]} Kg8 {[%emt 0:00:09]} 20. Rg3 {[%emt 0:00:20] Rh3 would kill now.} g6 {[%emt 0:05:00]} 21. Qh6 {[%emt 0:02:59]} f5 {[%emt 0:00:25]} 22. Qxg6+ $2 {[%emt 0:02:04]} (22. gxf6 Qh7 23. Rxg6+ Kh8 24. Nxc5 Qxh6 25. Rxh6+ Kg8 26. Ke2 Bf3+ 27. Kxf3 Rxf6+ 28. Rxf6 Nxf6 29. cxb5) 22... Qg7 {[%emt 0:00:57]} 23. Qxg7+ {[%emt 0:00:14]} Kxg7 {[%emt 0:00:06]} 24. Nxc5 {[%emt 0:00:08] White took control after the opening.  Weighted Error Value: White=0.30/Black=0.52} 1-0

[Event "VII Totalizator Sportowy 2022"]
[Site "Bydgoszcz"]
[Date "2022.07.03"]
[Round "9.11"]
[White "Malek, Jan"]
[Black "Paprocki, Antoni"]
[Result "1-0"]
[ECO "B51"]
[WhiteElo "2316"]
[BlackElo "1851"]
[Annotator "TA"]
[PlyCount "45"]
[EventDate "2022.06.25"]
[EventType "swiss"]
[EventCountry "POL"]
[SourceTitle "playchess.com"]
[Source "ChessBase"]
[SourceQuality "1"]
[TimeControl "40/5400+30:1800+30"]

{[%evp 9,45,23,23,17,22,16,21,9,29,18,46,39,45,17,80,58,100,75,192,192,291,297,293,297,339,331,358,333,328,337,428,417,407,386,622,624,631,612]} 1. e4 {[%emt 0:00:04]} c5 {[%emt 0:00:07]} 2. Nf3 {[%emt 0:00:07]} d6 {[%emt 0:00:05]} 3. Bb5+ {[%emt 0:00:05]} Nd7 {[%emt 0:00:05]} 4. a4 {[%emt 0:00:06]} Ngf6 {[%emt 0:00:42]} 5. Nc3 {[%emt 0:00:22]} a6 {[%emt 0:01:29]} 6. Be2 {[%emt 0:00:13] B51: Sicilian: Moscow Variation (3 Bb5+) without 3...Bd7.} b6 {[%emt 0:02:41]} 7. d4 {[%emt 0:00:28]} cxd4 {[%emt 0:00:24]} 8. Qxd4 {[%emt 0:00:58] The position is equal.} e6 {[%emt 0:01:21]} 9. Be3 {[%emt 0:14:36] [#]} Qc7 $146 {[%emt 0:02:04]} ({Predecessor:} 9... Bb7 10. O-O Qc7 11. Nd2 Be7 12. Rfd1 O-O 13. Nc4 e5 14. Qd3 Rfd8 15. Bg5 Nc5 {1-0 (29) Sadhwani,R (2619)-Halkias,S (2512) Chess.com INT 2022}) 10. Nd2 {[%emt 0:01:29]} Bb7 {[%emt 0:10:59]} 11. Nc4 {[%emt 0:01:40]} e5 {[%emt 0:05:03]} (11... Nc5 $11 {remains equal.}) 12. Qd3 $16 {[%emt 0:00:56] 0x0.0017652b493fdp-1022s more active pieces. The black rooks are badly placed.} Be7 {[%emt 0:19:23]} 13. O-O-O {[%emt 0:10:53][%cal Rc4d6]} (13. Rd1 {is more complex.} O-O 14. Nxd6 Nc5 15. Bxc5 bxc5 16. Nxb7 c4 17. Qxc4 Qxb7 18. Qb3) 13... Nc5 {[%emt 0:16:37]} (13... O-O $16) 14. Nxd6+ $18 {[%emt 0:01:04]} Bxd6 {[%emt 0:01:32]} (14... Kf8 $142 15. Bxc5 bxc5) 15. Qxd6 {[%emt 0:00:02]} Qxd6 {[%emt 0:01:50]} 16. Rxd6 {[%emt 0:00:03]} Nfxe4 {[%emt 0:01:59]} 17. Nxe4 {[%emt 0:02:34]} ({Don't take} 17. Rxb6 $6 Nxc3 18. bxc3 Bxg2 $18) 17... Bxe4 {[%emt 0:01:27]} 18. Rxb6 {[%emt 0:02:39]} ({But not} 18. f3 Bf5 19. g4 (19. Rxb6 Nxa4 20. Rb4 Rc8 $18) 19... Bc8 $18) 18... Nd7 {[%emt 0:01:52]} 19. Rxa6 {[%emt 0:01:33]} Bxg2 {[%emt 0:00:56]} 20. Rxa8+ {[%emt 0:01:34]} Bxa8 {[%emt 0:00:03]} 21. Rd1 {[%emt 0:00:09] [#] Threatens to win with Bb5.} Bc6 {[%emt 0:00:33]} (21... Ke7 22. b4 f5) 22. Rd6 {[%emt 0:02:00]} Bxa4 {[%emt 0:00:06]} 23. Ra6 {[%emt 0:00:11] Weighted Error Value: White=0.02 (flawless) /Black=0.45} 1-0

[Event "VII Totalizator Sportowy 2022"]
[Site "Bydgoszcz"]
[Date "2022.07.03"]
[Round "9.12"]
[White "Fiedorek, Michal"]
[Black "Zebracki, Tomasz"]
[Result "1-0"]
[ECO "B19"]
[WhiteElo "2315"]
[BlackElo "2200"]
[Annotator "TA"]
[PlyCount "67"]
[EventDate "2022.06.25"]
[EventType "swiss"]
[EventCountry "POL"]
[SourceTitle "playchess.com"]
[Source "ChessBase"]
[SourceQuality "1"]
[TimeControl "40/5400+30:1800+30"]

{[%evp 26,67,30,25,14,0,6,0,0,0,0,-12,50,44,64,33,23,0,71,31,233,213,232,216,215,212,638,640,2233,1785,1410,1172,29986,29987,29987,29988,29988,29975,29990,29991,29994,29995,29995,29994]} 1. e4 {[%emt 0:00:03]} c6 {[%emt 0:00:03]} 2. d4 {[%emt 0:00:06]} d5 {[%emt 0:00:04]} 3. Nc3 {[%emt 0:00:11]} dxe4 {[%emt 0:00:04]} 4. Nxe4 {[%emt 0:00:06]} Bf5 {[%emt 0:00:04]} 5. Ng3 {[%emt 0:00:10]} Bg6 {[%emt 0:00:03]} 6. h4 {[%emt 0:00:14]} h6 {[%emt 0:00:06]} 7. Nf3 {[%emt 0:00:13]} Nd7 {[%emt 0:00:08]} 8. h5 {[%emt 0:00:12]} Bh7 {[%emt 0:00:07]} 9. Bd3 {[%emt 0:00:08]} Bxd3 {[%emt 0:00:09]} 10. Qxd3 {[%emt 0:00:06]} e6 {[%emt 0:00:10]} 11. Bd2 {[%emt 0:00:17]} Ngf6 {[%emt 0:00:07]} 12. O-O-O {[%emt 0:00:20]} Be7 {[%emt 0:00:05]} 13. Kb1 {[%emt 0:01:57]} O-O {[%emt 0:00:11]} 14. Ne4 {[%emt 0:00:07]} c5 {[%emt 0:01:48] B19: Classical Caro-Kann: 4...Bf5 main line.} 15. Nxf6+ {[%emt 0:22:28]} (15. g4 {keeps more tension.} Nxg4 16. Qe2 Qb6 17. Ne5) 15... Bxf6 {[%emt 0:00:11]} 16. Bc3 {[%emt 0:02:40][%cal Bd2c3,Bc3d4,Bd4e3][%mdl 32]} cxd4 {[%emt 0:07:33] The position is equal.} 17. Bxd4 {[%emt 0:02:28]} Qc7 {[%emt 0:14:42] [#]} 18. Qe4 $146 {[%emt 0:21:33]} ({Predecessor:} 18. g4 Rad8 19. Qe3 Bxd4 20. Rxd4 Nb6 21. g5 Rxd4 22. Qxd4 Rc8 23. c3 Rd8 24. Qg4 {0-1 (48) Rjanova,V (2170)-Girya,O (2464) Loo 2013}) 18... e5 {[%emt 0:07:39]} ({Black should try} 18... Rad8 $11) 19. Be3 $14 {[%emt 0:09:47][%cal Oe3h6] Hoping for Bxh6!} Nc5 {[%emt 0:00:32]} 20. Qf5 {[%emt 0:05:29][%cal Oe3h6] aiming for Bxh6! White is more active.} (20. Qc4 $5 {[%cal Rc4c5]} b6 21. Nh2 $14) 20... Na4 {[%emt 0:11:10][%cal Oe5e4]} 21. Qe4 {[%emt 0:04:04]} b5 {[%emt 0:30:52]} (21... Nc5 $11 22. Qc4 Rac8) 22. g4 {[%emt 0:07:23]} b4 $2 {[%emt 0:00:47] This move loses the game for Black.} (22... Qc3 $14 23. Qxa4 (23. bxc3 Nxc3+ 24. Kb2 Nxe4 $17) 23... Qxe3 24. fxe3 bxa4) 23. g5 $18 {[%emt 0:06:17]} (23. Qxb4 $2 Qc6 24. Qd6 (24. g5 $2 hxg5 25. Nd2 Rfb8 $19) 24... Qxf3 $19) 23... hxg5 {[%emt 0:11:32]} 24. Nxg5 {[%emt 0:00:05]} ({Avoid the trap} 24. Qxb4 $2 Qc6 25. Qa3 Rfb8 26. Bxg5 Nxb2 $19) 24... Bxg5 {[%emt 0:00:28]} 25. Bxg5 {[%emt 0:00:06] [#] Strongly threatening h6.} Rab8 $2 {[%emt 0:02:15]} (25... Nc5 26. Qf5 (26. Qxb4 Rab8 $16) 26... Qc8 27. Qxe5 f6 28. Qd5+ Qe6 29. Qxc5 fxg5) 26. h6 {[%emt 0:05:06][%cal Bh5h6,Bh6g7][%mdl 32] hxg7 would kill now.} Nc3+ {[%emt 0:05:33]} 27. bxc3 {[%emt 0:00:05]} bxc3+ {[%emt 0:00:01]} 28. Ka1 {White threatens hxg7 and mate.} Rb2 {[%emt 0:00:34]} 29. Qa4 {[%emt 0:04:27] White mates.} ({And not} 29. hxg7 Rxa2+ 30. Kxa2 Qa5+ 31. Kb3 Rb8+ 32. Kc4 Rb4+ 33. Kd3 Qa6+ 34. Ke3 Rxe4+ 35. Kxe4 Qg6+ 36. Kd5 Qxg5 $11) 29... Qb6 {[%emt 0:03:08]} 30. hxg7 {[%emt 0:00:43]} Rb8 {[%emt 0:00:35]} 31. Be3 {[%emt 0:01:41]} Qe6 {[%emt 0:04:34]} 32. Rdg1 {[%emt 0:01:10][%csl Gg7][%cal Rh1h8]} f5 {[%emt 0:00:22]} 33. Rh8+ {[%emt 0:00:37]} Kf7 {[%emt 0:00:05]} 34. Qxa7+ {[%emt 0:00:38] Weighted Error Value: White=0.08 (flawless) /Black=0.88} 1-0

[Event "VII Totalizator Sportowy 2022"]
[Site "Bydgoszcz"]
[Date "2022.07.03"]
[Round "9.13"]
[White "Navaratnam, Rohan Shan Tze"]
[Black "Licznerski, Lukasz"]
[Result "0-1"]
[ECO "B14"]
[WhiteElo "2071"]
[BlackElo "2439"]
[Annotator "TA"]
[PlyCount "45"]
[EventDate "2022.06.25"]
[EventType "swiss"]
[EventCountry "POL"]
[SourceTitle "playchess.com"]
[Source "ChessBase"]
[SourceQuality "1"]
[TimeControl "40/5400+30:1800+30"]

{[%evp 25,45,0,10,20,17,-32,-41,-44,-37,-37,-38,-245,-227,-356,-352,-439,-445,-660,-657,-638,-604,-935]} 1. e4 {[%emt 0:03:15]} c6 {[%emt 0:05:05]} 2. d4 {[%emt 0:00:08]} d5 {[%emt 0:00:01]} 3. exd5 {[%emt 0:01:09]} cxd5 {[%emt 0:00:01]} 4. c4 {[%emt 0:00:07]} Nf6 {[%emt 0:00:02]} 5. Nc3 {[%emt 0:00:08]} g6 {[%emt 0:00:01]} 6. Qb3 {[%emt 0:00:11]} Bg7 {[%emt 0:00:02]} 7. cxd5 {[%emt 0:00:09]} O-O {[%emt 0:00:02]} 8. Be2 {[%emt 0:00:12]} Nbd7 {[%emt 0:01:13]} 9. Bf3 {[%emt 0:00:12]} Nb6 {[%emt 0:00:01]} 10. a4 {[%emt 0:02:39]} a5 {[%emt 0:00:17]} 11. Nge2 {[%emt 0:00:20]} Qd6 {[%emt 0:01:12]} 12. Nb5 {[%emt 0:05:12]} Qd8 {[%emt 0:06:18]} 13. Nbc3 {[%emt 0:04:03]} Bf5 {[%emt 0:03:49][%cal Bc8f5,Bf5c2,Bc2b3][%mdl 32]} 14. Qb5 {[%emt 0:05:00] B14: Caro-Kann: Panov-Botvinnik Attack with 5...e6 and 5...g6.} (14. O-O {is more complex.} Bd3 15. d6 Qxd6 16. Nb5) 14... Ne8 {[%emt 0:12:03][%cal Bf6e8,Be8d6,Bd6b5,Bb5d4][%mdl 32] [#]} 15. b3 $146 {[%emt 0:11:26]} (15. Bf4 $11) ({Predecessor:} 15. Bf4 Nd6 16. Bxd6 Qxd6 17. O-O Qb4 18. b3 Bc2 19. Rfc1 Bxb3 20. Rab1 Qxb5 21. Nxb5 Bc4 22. d6 exd6 23. Nxd6 Bxe2 24. Bxe2 Bxd4 25. Nxb7 Nxa4 {0-1 (55) Docekal,J (2238)-Sorm,D (2345) Prague 2021}) 15... Nd6 $15 {[%emt 0:07:50]} 16. Qc5 {[%emt 0:00:15] Black is slightly better.} Bc2 {[%emt 0:03:56]} 17. Bf4 {[%emt 0:08:35]} Bxb3 {[%emt 0:02:55]} 18. Rb1 $2 {[%emt 0:01:04] [#]} ({White should try} 18. Bxd6 $15 exd6 19. Qa3) 18... Nxa4 $19 {[%emt 0:00:36]} 19. Qa3 {[%emt 0:09:21]} (19. Nxa4 {is the only way for White.} Bxa4 20. Qa3) 19... Nxc3 {[%emt 0:05:56]} 20. Rxb3 {[%emt 0:00:05]} Ndb5 {[%emt 0:00:48] Pair of Knights! Black is clearly winning.} 21. Qc1 {[%emt 0:01:52]} (21. Rxb5 $142 Nxb5 22. Qa2) 21... Nxe2 {[%emt 0:00:05]} 22. Bxe2 {[%emt 0:00:04]} Nxd4 {[%emt 0:00:05]} 23. d6 {White got outplayed after the opening.  Weighted Error Value: White=1.06/Black=0.01 (flawless)} 0-1

[Event "VII Totalizator Sportowy 2022"]
[Site "Bydgoszcz"]
[Date "2022.07.03"]
[Round "9.14"]
[White "Kowalski, Igor"]
[Black "Kacprzak, Karol"]
[Result "1-0"]
[ECO "D38"]
[WhiteElo "2370"]
[BlackElo "2200"]
[Annotator "TA"]
[PlyCount "79"]
[EventDate "2022.06.25"]
[EventType "swiss"]
[EventCountry "POL"]
[SourceTitle "playchess.com"]
[Source "ChessBase"]
[SourceQuality "1"]
[TimeControl "40/5400+30:1800+30"]

{[%evp 18,79,37,33,40,38,38,32,52,41,35,32,50,36,73,27,22,18,61,28,18,-1,-1,0,0,0,0,-14,-12,-14,-12,-23,-17,-16,-16,-17,-26,-22,7,14,10,0,102,97,133,119,135,128,271,270,256,259,230,217,241,233,295,283,260,266,313,295,495,472]} 1. d4 {[%emt 0:00:02]} Nf6 {[%emt 0:00:08]} 2. c4 {[%emt 0:00:03]} e6 {[%emt 0:00:12]} 3. Nf3 {[%emt 0:00:04]} d5 {[%emt 0:00:18]} 4. Nc3 {[%emt 0:00:05]} Bb4 {[%emt 0:00:13]} 5. cxd5 {[%emt 0:00:20]} exd5 {[%emt 0:00:09]} 6. Bg5 {[%emt 0:00:04]} h6 {[%emt 0:00:23]} 7. Bh4 {[%emt 0:00:05]} g5 {[%emt 0:03:05]} 8. Bg3 {[%emt 0:00:05]} Ne4 {[%emt 0:00:07]} 9. Nd2 {[%emt 0:00:07]} Nxg3 {[%emt 0:15:08]} 10. hxg3 {[%emt 0:00:23]} Be6 {[%emt 0:13:22] [#] D38: Queen's Gambit Declined: Ragozin Defence (4 Nf3 Bb4).} 11. Qa4+ $146 {[%emt 0:10:24]} ({Predecessor:} 11. Qb3 Nc6 12. e3 Rb8 13. Bb5 Be7 14. e4 Kf8 15. Bxc6 bxc6 16. Qc2 dxe4 17. Ndxe4 Qxd4 18. O-O {1-0 (39) Diaz Perez,M (2427)-Ambartsumova,K (2382) Chess.com INT 2022}) 11... Nc6 {[%emt 0:00:08]} 12. e3 {[%emt 0:00:04][%cal Of1a6]} a6 {[%emt 0:03:51] White is slightly better.} 13. Bd3 {[%emt 0:00:26]} Bd6 {[%emt 0:14:06]} 14. a3 {[%emt 0:03:05]} Kf8 {[%emt 0:02:03]} 15. Qc2 {[%emt 0:03:54]} Qf6 {[%emt 0:08:11]} 16. Ne2 {[%emt 0:03:30]} ({White should play} 16. Nb3 $16) 16... Re8 $11 {[%emt 0:07:25]} 17. Rf1 {[%emt 0:00:35]} Bg4 {[%emt 0:09:58]} 18. Qb3 {[%emt 0:07:41][%csl LRb7,LRd5]} Qe6 {[%emt 0:01:47]} 19. O-O-O {[%emt 0:19:36]} Bxe2 {[%emt 0:06:25]} 20. Bxe2 {[%emt 0:00:13]} Nxd4 $1 {[%emt 0:00:03]} 21. exd4 {[%emt 0:00:05] Hoping for Rfe1.} Qxe2 {[%emt 0:00:04]} 22. Qxd5 {[%emt 0:00:17]} Qb5 {[%emt 0:02:07]} (22... b5 {seems wilder.} 23. Qf5 Kg7 24. Kc2 Qe6) 23. Qxb5 {[%emt 0:01:54]} axb5 {[%emt 0:00:05]} 24. Rfe1 {[%emt 0:00:10]} f5 {[%emt 0:01:43]} 25. Nb3 {[%emt 0:02:59]} Kf7 {[%emt 0:02:07]} 26. d5 {[%emt 0:00:40]} b4 {[%emt 0:01:26]} 27. a4 {[%emt 0:00:46]} Re5 {[%emt 0:01:31]} 28. Rxe5 {[%emt 0:06:44]} Bxe5 {[%emt 0:00:01][%mdl 4096] Endgame KRB-KRN} 29. Kc2 {[%emt 0:00:08]} Rd8 {[%emt 0:03:06] [#]} (29... Ra8 $11 {keeps the balance.}) 30. Na5 $1 $16 {[%emt 0:01:39]} Ra8 {[%emt 0:03:33] [#]} 31. Nc4 {[%emt 0:01:42]} Bf6 {[%emt 0:00:30]} 32. Kb3 {[%emt 0:00:12]} Be7 {[%emt 0:00:35] Black cannot hold the game after this.} (32... Rd8 $16) 33. d6 $18 {[%emt 0:04:23]} cxd6 {[%emt 0:00:16]} 34. Nxd6+ {[%emt 0:00:05]} Ke6 {[%emt 0:00:03]} 35. Nxb7 {[%emt 0:00:07]} h5 {[%emt 0:00:23]} 36. Rc1 {[%emt 0:02:00]} f4 {[%emt 0:00:36]} 37. Nc5+ {[%emt 0:00:42]} Kf5 {[%emt 0:00:19]} 38. gxf4 {[%emt 0:05:52]} ({Don't take} 38. Kxb4 $6 Rd8 39. a5 Rd2 $18) 38... gxf4 {[%emt 0:00:25]} 39. f3 {[%emt 0:01:38]} (39. Kxb4 Rb8+ 40. Ka3 h4 $18) 39... Ra5 $2 {[%emt 0:02:18]} (39... h4 40. Rc2 (40. Kxb4 Rg8 $16) 40... Rg8) 40. Kxb4 {[%emt 0:00:00] Weighted Error Value: White=0.05 (flawless) /Black=0.28 (precise)} 1-0